[Event "Budapest Chess Festival 2024"]
[Site "Budapest"]
[Date "2024.05.30"]
[Round "8.16"]
[White "Niedbala, Bartlomiej"]
[Black "Mihok, Oliver"]
[Result "1/2-1/2"]
[ECO "B48"]
[WhiteElo "2399"]
[BlackElo "2528"]
[Annotator "TA"]
[PlyCount "62"]
[EventDate "2024.05.20"]
[EventType "swiss"]
[EventCountry "HUN"]
[SourceTitle "playchess.com"]
[Source "ChessBase"]
[SourceQuality "1"]
[TimeControl "40/5400+30:1800+30"]

{[%evp 11,62,16,42,18,50,49,59,36,51,50,57,40,48,50,46,32,36,19,36,35,151,129,149,141,160,152,225,227,281,270,274,261,276,269,227,131,215,219,223,226,219,177,187,122,133,116,122,50,77,56,40,10,25]} 1. e4 {[%emt 0:00:33]} c5 {[%emt 0:00:38]} 2. Nf3 {[%emt 0:00:06]} e6 {[%emt 0:00:06]} 3. d4 {[%emt 0:00:13]} cxd4 {[%emt 0:00:04]} 4. Nxd4 {[%emt 0:00:06]} Nc6 {[%emt 0:00:04]} 5. Nc3 {[%emt 0:00:14]} Qc7 {[%emt 0:00:05]} 6. Be3 {[%emt 0:00:32]} a6 {[%emt 0:00:07]} 7. Qf3 {[%emt 0:00:12]} h5 {[%emt 0:00:59][%cal Of8a3,Bh7h5,Bh5h4][%mdl 32]} 8. Qg3 {[%emt 0:01:17]} d6 {[%emt 0:00:54]} 9. f4 {[%emt 0:01:15] White is slightly better.} Nf6 {[%emt 0:04:35]} 10. Be2 {[%emt 0:01:23]} Bd7 {[%emt 0:03:20]} 11. O-O {[%emt 0:01:20]} h4 {[%emt 0:02:09]} 12. Qf2 {[%emt 0:00:38]} Be7 {[%emt 0:01:34]} 13. Rad1 {[%emt 0:03:49]} b5 {[%emt 0:13:13]} 14. a3 {[%emt 0:02:13]} Rc8 {[%emt 0:03:21]} 15. h3 {[%emt 0:06:51]} Nh5 {[%emt 0:07:31]} (15... Rb8 $14) 16. Bxh5 $16 {[%emt 0:15:11]} Rxh5 {[%emt 0:01:25] [#]} 17. f5 $1 {[%emt 0:00:32] fxe6 would now be deadly.} Ne5 {[%emt 0:09:04] [#]} 18. Nce2 $1 {[%emt 0:09:13]} Qb7 {[%emt 0:17:00]} (18... Rh8 $16 19. Nf4 Rh7) 19. Nf4 $1 $18 {[%emt 0:09:35][%csl LRe6,LRh5]} Rh6 {[%emt 0:04:33]} 20. Nd3 {[%emt 0:16:10]} Nxd3 {[%emt 0:00:52]} 21. cxd3 {[%emt 0:01:31]} Rh8 {[%emt 0:02:20]} 22. fxe6 {[%emt 0:01:09]} Bxe6 {[%emt 0:00:09]} 23. Nf5 {[%emt 0:04:47]} (23. Nxe6 $18 fxe6 24. Qf4 (24. Qf7+ Kd7 $18)) 23... Rh7 {[%emt 0:05:13]} (23... Bxf5 $16 24. Qxf5 Bd8) 24. Rc1 {[%emt 0:02:00]} Kf8 {[%emt 0:08:46]} 25. Rxc8+ {[%emt 0:06:23]} Bxc8 {[%emt 0:01:11]} 26. Bd4 {[%emt 0:04:07] And now Bxg7+ would win.} Be6 {[%emt 0:03:10]} 27. Qf4 {[%emt 0:00:27]} (27. Nxe7 Qxe7 28. Rc1 Bxh3 $14) ({White should play} 27. Rc1 $18) 27... Qd7 $16 {[%emt 0:02:17]} 28. Nxe7 {[%emt 0:08:24]} Qxe7 {[%emt 0:00:16] Black is weak on the dark squares} 29. Bc3 {[%emt 0:00:26] White has more active pieces.} ({Better is} 29. Rc1 $16) 29... Kg8 {[%emt 0:04:02]} 30. Kh2 {[%emt 0:00:45]} Rh6 {[%emt 0:00:55]} 31. Bd4 {[%emt 0:01:24]} Rh5 {[%emt 0:02:48] Weighted Error Value: White=0.17 (very precise) /Black=0.24 (precise) .  Mistake:       	White=3     	Black=3      Inaccurate:     	White=1     	Black=2      OK:         	White=10    	Black=6      Best:        	White=1     	Black=1      Strong:       	White=1     	---} 1/2-1/2

[Event "Budapest Chess Festival 2024"]
[Site "Budapest"]
[Date "2024.05.30"]
[Round "8.17"]
[White "Fernandez, Daniel Howard"]
[Black "Karacsonyi, Gellert"]
[Result "1-0"]
[ECO "A00"]
[WhiteElo "2526"]
[BlackElo "2389"]
[Annotator "TA"]
[PlyCount "91"]
[EventDate "2024.05.20"]
[EventType "swiss"]
[EventCountry "HUN"]
[SourceTitle "playchess.com"]
[Source "ChessBase"]
[SourceQuality "1"]
[TimeControl "40/5400+30:1800+30"]

{[%evp 9,91,-64,-18,-26,-12,-27,0,-16,-17,-66,-33,-119,0,-9,0,11,27,34,22,-17,-14,-21,-7,-45,-35,-32,-20,-46,0,0,0,0,76,80,85,78,95,94,102,107,141,78,134,119,184,30,27,32,39,38,72,60,53,45,260,268,243,259,411,411,372,345,173,121,121,173,163,129,739,711,704,715,2145,1675,1652,1999,1995,2163,29972,6107,29984,29985,29985,29986]} 1. a3 {[%emt 0:01:03]} d5 {[%emt 0:02:39]} 2. Nf3 {[%emt 0:00:19]} Nf6 {[%emt 0:00:14]} 3. h3 {[%emt 0:05:20]} c5 {[%emt 0:10:17]} 4. c4 {[%emt 0:06:28]} e6 {[%emt 0:02:12]} 5. g4 {[%emt 0:05:16]} h6 {[%emt 0:00:33]} (5... Nc6 $15) 6. cxd5 $11 {[%emt 0:04:33]} exd5 {[%emt 0:00:21]} 7. d4 {[%emt 0:00:09]} c4 {[%emt 0:11:23]} 8. Nc3 {[%emt 0:02:15] The position is equal.} Nc6 {[%emt 0:00:19]} 9. b3 {[%emt 0:00:35]} (9. Ne5 $11) 9... Ne4 $15 {[%emt 0:08:33]} 10. Bb2 {[%emt 0:12:36] [#]} (10. Bd2 $1 $15) 10... b5 {[%emt 0:03:37]} 11. Bg2 $11 {[%emt 0:09:27]} Nxc3 {[%emt 0:18:15]} 12. Bxc3 {[%emt 0:07:32][%cal Oe2e4]} Be6 {[%emt 0:00:54]} 13. bxc4 {[%emt 0:01:13]} bxc4 {[%emt 0:00:09]} 14. Ne5 {[%emt 0:05:52]} Nxe5 {[%emt 0:00:34]} 15. dxe5 {[%emt 0:00:03]} Bc5 {[%emt 0:00:53]} 16. Bb4 {[%emt 0:06:25]} Bxb4+ {[%emt 0:07:49]} 17. axb4 {[%emt 0:00:42]} O-O {[%emt 0:03:09]} 18. Qd4 {[%emt 0:05:17][%cal Of2f4]} Qb6 {[%emt 0:03:42]} (18... Rb8 $15 19. O-O Rxb4) 19. Qxb6 {[%emt 0:00:19]} axb6 {[%emt 0:00:01]} 20. Kd2 {[%emt 0:00:11]} Rac8 {[%emt 0:06:53]} (20... f6 $11 21. Rxa8 (21. exf6 Rad8 $11) 21... Rxa8 22. exf6 gxf6) 21. Ra6 $1 $16 {[%emt 0:06:04]} c3+ {[%emt 0:00:34]} 22. Kd3 {[%emt 0:01:13]} Rc4 {[%emt 0:02:53]} 23. Rxb6 {[%emt 0:00:13]} Ra8 {[%emt 0:00:17]} 24. Rc1 {[%emt 0:03:57]} Ra3 {[%emt 0:06:15]} 25. b5 {[%emt 0:10:33]} (25. Rc2 $142) 25... c2+ {[%emt 0:02:00]} 26. Kd2 {[%emt 0:00:02]} Rd4+ {[%emt 0:01:52]} (26... h5 $16) 27. Ke1 $2 {[%emt 0:01:19]} (27. Kxc2 $18 {Strongly threatening Rb1.} Ra2+ 28. Kc3 Rc4+ 29. Kb3) 27... Rb3 $11 {[%emt 0:02:49] Wards off Rb1. And now ...Rb1 would win.} 28. Rc6 {[%emt 0:00:42]} (28. Rxc2 $2 {is a self mate.} Rb1+) ({Much weaker is} 28. Rb8+ Kh7 29. e3 Rd1+ (29... Rc4 30. Bf1 $18) 30. Rxd1 Rb1 $11) 28... Rxb5 {[%emt 0:00:26]} 29. R6xc2 {[%emt 0:00:10]} g5 {[%emt 0:00:11][%cal Oh6h5]} 30. e3 {[%emt 0:00:54]} Rdb4 {[%emt 0:01:12]} 31. Rd2 {[%emt 0:02:08]} Rb1 $2 {[%emt 0:01:57]} ({Better is} 31... h5 $14) 32. Rxb1 $18 {[%emt 0:00:30]} Rxb1+ {[%emt 0:00:02][%mdl 4096] Endgame. KRB-KRB} 33. Ke2 {[%emt 0:00:09]} Rg1 {[%emt 0:01:17]} (33... h5 {was called for.} 34. gxh5 (34. Bxd5 hxg4 35. Bxe6 fxe6 $18) 34... Rg1 35. Bxd5 Bxh3) 34. Bxd5 {[%emt 0:03:17]} Bxd5 {[%emt 0:00:14]} 35. Rxd5 {[%emt 0:00:06] KR-KR} Rh1 {[%emt 0:00:03]} (35... Rg2 $142 36. Kf3 Rg1 37. Rd8+ Kg7) 36. Kf3 {[%emt 0:00:14]} (36. Rd8+ $18 Kg7 37. f4 Rh2+ 38. Kd3 gxf4 39. exf4 Rxh3+ 40. Kd2) 36... Rxh3+ $16 {[%emt 0:00:53]} 37. Kg2 {[%emt 0:00:02]} (37. Ke4 $16) 37... Rh4 $18 {[%emt 0:00:08]} 38. f3 {[%emt 0:00:05][%cal Bf2f3,Bf3f4,Bf4f5,Bf5f6][%mdl 32] aiming for Rd8+.} Kg7 $2 {[%emt 0:02:44][%mdl 8192]} (38... Kf8 $16) 39. Rd1 $1 {[%emt 0:01:40] Rh1 would now be deadly.} h5 {[%emt 0:00:26] [#]} 40. gxh5 $1 {[%emt 0:00:00]} g4 {[%emt 0:00:00] [#]} 41. f4 $1 {[%emt 0:00:49] Rh1 would kill now.} Rh3 {[%emt 0:05:57]} 42. e4 Rf3 {[%emt 0:01:47]} 43. f5 {[%emt 0:02:19]} Re3 {[%emt 0:00:57]} 44. f6+ {[%emt 0:03:09]} Kh6 {[%emt 0:00:54] [#]} 45. e6 $1 {[%emt 0:00:10]} fxe6 {[%emt 0:00:24]} 46. Rf1 {[%emt 0:00:02] Weighted Error Value: White=0.22 (precise) /Black=0.65.  Loses game:     	---       	Black=2      Mistake:       	White=6     	Black=6      Inaccurate:     	White=3     	Black=3      OK:         	White=11    	Black=8      Best:        	White=2     	Black=4      Strong:       	White=2     	---} 1-0

[Event "Budapest Chess Festival 2024"]
[Site "Budapest"]
[Date "2024.05.30"]
[Round "8.18"]
[White "Neverov, Valeriy"]
[Black "Parkhov, Yair"]
[Result "1/2-1/2"]
[ECO "D37"]
[WhiteElo "2389"]
[BlackElo "2510"]
[Annotator "TA"]
[PlyCount "46"]
[EventDate "2024.05.20"]
[EventType "swiss"]
[EventCountry "HUN"]
[SourceTitle "playchess.com"]
[Source "ChessBase"]
[SourceQuality "1"]
[TimeControl "40/5400+30:1800+30"]

{[%evp 9,46,25,49,0,18,17,23,18,29,20,15,17,27,18,37,35,34,37,48,29,60,54,57,45,72,31,35,23,55,55,66,64,53,57,52,58,67,71,75]} 1. d4 {[%emt 0:00:33]} Nf6 {[%emt 0:00:34]} 2. c4 {[%emt 0:00:19]} e6 {[%emt 0:00:04]} 3. Nf3 {[%emt 0:00:19]} d5 {[%emt 0:00:04]} 4. Nc3 {[%emt 0:00:49]} Nbd7 {[%emt 0:00:05]} 5. Bg5 {[%emt 0:03:10]} Bb4 {[%emt 0:00:44]} 6. g3 {[%emt 0:17:46]} (6. e3 $14) 6... c5 {[%emt 0:06:12]} 7. cxd5 {[%emt 0:02:30]} exd5 {[%emt 0:05:57]} 8. Bg2 {[%emt 0:00:11] White has an edge.} h6 {[%emt 0:06:59]} 9. Bxf6 {[%emt 0:02:48]} Nxf6 {[%emt 0:01:20]} 10. O-O {[%emt 0:02:44]} O-O {[%emt 0:00:29]} 11. dxc5 {[%emt 0:03:26]} Bxc5 {[%emt 0:02:53]} 12. Rc1 {[%emt 0:01:48]} Re8 {[%emt 0:20:40]} 13. e3 {[%emt 0:12:49][%cal Oc3d5]} b6 {[%emt 0:06:13]} 14. Nd4 {[%emt 0:07:20]} Bb7 {[%emt 0:04:40] Against Nc6} 15. Qa4 {[%emt 0:08:35]} Qe7 {[%emt 0:10:57]} 16. Rfd1 {[%emt 0:00:38]} Rad8 {[%emt 0:10:02]} 17. h3 {[%emt 0:10:13] White has more active pieces.} (17. Qxa7 $2 {perishes.} Ra8 $19) 17... a6 {[%emt 0:05:36]} 18. a3 {[%emt 0:02:57]} h5 {[%emt 0:01:41]} 19. b4 {[%emt 0:04:24]} b5 {[%emt 0:01:03]} 20. Qb3 {[%emt 0:00:45]} Ba7 {[%emt 0:01:03]} 21. a4 {[%emt 0:01:31]} bxa4 {[%emt 0:01:32]} 22. Nxa4 {[%emt 0:00:19] Excellent horsemanship.} g6 {[%emt 0:05:35]} 23. Nc5 {[%emt 0:03:06]} Rd6 {[%emt 0:02:07] Weighted Error Value: White=0.08 (flawless) /Black=0.08 (flawless) .  Inaccurate:     	White=1     	Black=3      OK:         	White=9     	Black=8} 1/2-1/2

[Event "Budapest Chess Festival 2024"]
[Site "Budapest"]
[Date "2024.05.30"]
[Round "8.19"]
[White "Visakh N R"]
[Black "Bai, Adelard"]
[Result "1/2-1/2"]
[ECO "E20"]
[WhiteElo "2511"]
[BlackElo "2376"]
[Annotator "TA"]
[PlyCount "74"]
[EventDate "2024.05.20"]
[EventType "swiss"]
[EventCountry "HUN"]
[SourceTitle "playchess.com"]
[Source "ChessBase"]
[SourceQuality "1"]
[TimeControl "40/5400+30:1800+30"]

{[%evp 12,74,20,17,20,29,28,17,17,0,0,1,26,0,0,0,10,6,9,0,16,22,16,26,22,-7,28,14,23,11,12,12,39,36,33,37,47,27,27,20,30,25,21,18,38,12,178,162,310,362,356,441,450,353,322,114,266,0,0,0,0,0,0,0,0]} 1. d4 {[%emt 0:00:40]} Nf6 {[%emt 0:00:42]} 2. c4 {[%emt 0:00:08]} e6 {[%emt 0:00:04]} 3. Nc3 {[%emt 0:00:11]} Bb4 {[%emt 0:00:15]} 4. f3 {[%emt 0:00:08]} d5 {[%emt 0:00:06]} 5. a3 {[%emt 0:00:29]} Be7 {[%emt 0:00:06]} 6. e4 {[%emt 0:00:12]} dxc4 {[%emt 0:00:06]} 7. Bxc4 {[%emt 0:01:04]} c5 {[%emt 0:00:18]} 8. dxc5 {[%emt 0:11:09]} Qxd1+ {[%emt 0:00:13]} 9. Kxd1 {[%emt 0:00:06]} Bxc5 {[%emt 0:00:04][%cal Be7c5,Bc5b6,Bb6c7,Bc7e5][%mdl 32]} 10. b4 {[%emt 0:00:07]} Bb6 {[%emt 0:00:30]} 11. Nge2 {[%emt 0:02:29]} Nc6 {[%emt 0:00:30]} 12. Na4 {[%emt 0:20:45]} Bc7 {[%emt 0:00:59]} 13. Be3 {[%emt 0:00:10]} O-O {[%emt 0:04:08]} 14. Kc2 {[%emt 0:02:31]} Bd7 {[%emt 0:16:36]} 15. Nec3 {[%emt 0:04:40]} Rfc8 {[%emt 0:24:07]} 16. Kb3 {[%emt 0:03:49]} Be5 {[%emt 0:08:42]} 17. Rad1 {[%emt 0:01:40] Against Bd4} Be8 {[%emt 0:01:55]} 18. Bb5 {[%emt 0:13:09]} Rc7 {[%emt 0:05:44]} (18... a6 {with more complications.} 19. Be2 b5 20. Nc5 a5) 19. Be2 {[%emt 0:01:42]} Rd7 $1 {[%emt 0:05:22]} 20. Rxd7 {[%emt 0:04:32]} Nxd7 {[%emt 0:05:24]} 21. Bb5 {[%emt 0:03:08]} Nd4+ {[%emt 0:06:47]} 22. Bxd4 $1 {[%emt 0:00:52]} Bxd4 {[%emt 0:00:01]} 23. Rd1 {[%emt 0:00:24]} Bxc3 {[%emt 0:01:49]} 24. Bxd7 {[%emt 0:05:07]} Rd8 $1 {[%emt 0:02:10]} 25. Kxc3 {[%emt 0:01:07] Strongly threatening Nc5.} Rxd7 {[%emt 0:00:23]} 26. Rxd7 {[%emt 0:00:04]} Bxd7 $11 {[%emt 0:00:01][%mdl 4096] Endgame. KB-KN} 27. Nc5 {[%emt 0:00:01][%csl LRb7,LRd7]} Bc6 {[%emt 0:08:26]} 28. Kd4 {[%emt 0:09:14]} b6 {[%emt 0:03:28]} 29. Ke5 $1 {[%emt 0:06:42]} bxc5 {[%emt 0:01:23]} (29... Bb5 {was called for.}) 30. bxc5 $18 {[%emt 0:00:01][%cal Bb4c5,Bc5c6][%mdl 32] KB-KP} Kf8 {[%emt 0:02:38]} 31. Kd6 {[%emt 0:00:01]} Bb5 {[%emt 0:00:34]} 32. c6 {[%emt 0:00:02]} Ke8 {[%emt 0:02:07] [#]} 33. Kc7 {[%emt 0:00:05]} Ke7 $2 {[%emt 0:00:50] [#]} (33... Ba6 $16) 34. e5 $2 {[%emt 0:01:37]} (34. Kb7 $1 $18) 34... f6 $11 {[%emt 0:00:03] The position is equal.} 35. f4 {[%emt 0:00:08] And now g3 would win.} g5 {[%emt 0:00:06]} 36. g3 {[%emt 0:00:11]} gxf4 {[%emt 0:00:04]} 37. gxf4 {[%emt 0:00:05] Threatens to win with Kb7.} fxe5 {Weighted Error Value: White=0.16 (very precise) /Black=0.13 (very precise) .  Missed win:     	White=1     	---        Mistake:       	---       	Black=2      Inaccurate:     	White=3     	Black=2      OK:         	White=13    	Black=15     Best:        	White=1     	---        Strong:       	White=2     	Black=2} 1/2-1/2

[Event "Budapest Chess Festival 2024"]
[Site "Budapest"]
[Date "2024.05.30"]
[Round "8.20"]
[White "Jinan, Jomon"]
[Black "Vetoshko, Volodymyr"]
[Result "0-1"]
[ECO "A21"]
[WhiteElo "2380"]
[BlackElo "2505"]
[Annotator "TA"]
[PlyCount "60"]
[EventDate "2024.05.20"]
[EventType "swiss"]
[EventCountry "HUN"]
[SourceTitle "playchess.com"]
[Source "ChessBase"]
[SourceQuality "1"]
[TimeControl "40/5400+30:1800+30"]

{[%evp 9,60,29,24,22,21,17,25,16,25,25,25,21,22,16,22,24,16,18,25,9,20,16,20,-32,0,-66,-80,-66,-97,-111,-91,-130,-101,-174,-162,-241,-144,-433,-439,-1239,-1207,-1396,-1240,-1237,-1219,-29973,-3539,-29988,-29989,-29995,-29996,-29996,-29997]} 1. c4 {[%emt 0:00:59]} e5 {[%emt 0:00:43]} 2. Nc3 {[%emt 0:00:23]} Bb4 {[%emt 0:00:08]} 3. Nd5 {[%emt 0:00:50]} a5 {[%emt 0:00:23]} 4. Nf3 {[%emt 0:00:41]} d6 {[%emt 0:01:17]} 5. a3 {[%emt 0:00:33]} Bc5 {[%emt 0:00:07]} 6. e3 {[%emt 0:00:30]} c6 {[%emt 0:00:43]} 7. d4 {[%emt 0:03:16]} Ba7 {[%emt 0:00:24]} 8. Nc3 {[%emt 0:00:13] White has an edge.} Nd7 {[%emt 0:00:25]} 9. Be2 {[%emt 0:16:39]} Ngf6 {[%emt 0:01:07]} 10. O-O {[%emt 0:03:51]} O-O {[%emt 0:00:48]} 11. b4 {[%emt 0:13:58]} Bb8 {[%emt 0:01:46]} 12. Bb2 {[%emt 0:03:33]} Re8 {[%emt 0:20:08]} 13. Qc2 {[%emt 0:04:24]} e4 {[%emt 0:07:09]} 14. Nd2 {[%emt 0:00:08]} d5 {[%emt 0:03:02]} 15. Rfc1 {[%emt 0:12:54]} Nf8 {[%emt 0:04:26]} 16. Qd1 {[%emt 0:12:14]} ({White should try} 16. b5 $11) 16... Qd6 $15 {[%emt 0:07:16][%csl LRb4,LRh2]} 17. g3 {[%emt 0:01:01]} (17. Nf1 $1 $11) 17... Ne6 $1 {[%emt 0:06:10] Black is more active.} 18. cxd5 {[%emt 0:02:30]} cxd5 {[%emt 0:00:07]} 19. Nb5 {[%emt 0:00:05]} Qd7 {[%emt 0:02:52]} 20. bxa5 {[%emt 0:04:40]} h5 {[%emt 0:10:00]} 21. a4 {[%emt 0:03:36]} (21. f4 $17 {is a better defense.}) 21... Ng5 $19 {[%emt 0:03:01]} (21... Rxa5 22. Nb3 Ra8 23. Nc5 $15) 22. Bf1 {[%emt 0:06:24]} (22. Qf1 {might work better.}) 22... Ra6 {[%emt 0:07:14]} (22... Rxa5 23. h4 Nh3+ 24. Bxh3 Qxh3 25. Qf1) (22... h4 $19 23. Rc5 hxg3 (23... Rxa5 $2 24. Ba3 $19) 24. fxg3 Rxa5) 23. Ba3 $2 {[%emt 0:04:31][%mdl 8192] Loses the game.} (23. h4 $17 Nh3+ 24. Bxh3 Qxh3 25. Qe1) 23... Ng4 {[%emt 0:03:55]} (23... Rxa5 24. h4 Nh3+ 25. Bxh3 Qxh3 26. Qf1 Qxf1+ (26... Rxa4 27. Qxh3 Bxh3 28. Nc3 $15) 27. Kxf1 $17) (23... h4 $2 24. Nc3 $19) 24. h4 {[%emt 0:01:37] [#]} (24. Nd6 $142 Bxd6 25. Bxd6 Rxd6 (25... Qxd6 $2 26. Bg2 $19) 26. h4) 24... Nxf2 $1 {[%emt 0:02:08][%mdl 512]} 25. Kxf2 {[%emt 0:00:42]} (25. Rxc8 Nxd1) 25... Qf5+ {[%emt 0:04:24]} 26. Kg1 {[%emt 0:00:22]} Bxg3 {[%emt 0:00:15]} 27. Qe2 {[%emt 0:00:29] Prevents Qf2+.} Nf3+ {[%emt 0:01:20]} (27... Bxh4 28. Kh1 (28. Qxh5 $2 Nh3+ 29. Bxh3 Bf2+ 30. Kg2 Qxh5 $19) 28... Nh3 (28... Rxa5 $2 29. Nd6 $18) 29. Bxh3 Qxh3+ 30. Qh2 Qxe3 (30... Rxa5 $2 31. Nd6 $18) 31. Qxh4 $15) 28. Kh1 {[%emt 0:02:08]} Qf6 {[%emt 0:04:26] Black mates.} ({Not} 28... Bxh4 29. Nd6 Qg6 (29... Qg4 30. Qg2 $16) 30. Nxf3 (30. Nxe8 $2 Qg1#) 30... exf3 31. Qxf3 Rxd6 32. Bxd6 $11) 29. Kg2 {[%emt 0:01:05]} Qxh4 {[%emt 0:01:20][%csl Gf3,Gg3][%cal Rh4h2]} 30. Nxf3 {[%emt 0:00:12]} exf3+ {[%emt 0:00:11] Weighted Error Value: White=1.13/Black=0.17 (very precise) .  Loses game:     	White=1     	---        Mistake:       	White=5     	Black=1      Inaccurate:     	White=1     	---        OK:         	White=7     	Black=8      Best:        	---       	Black=2      Strong:       	---       	Black=1      Brilliant:      	---       	Black=1} 0-1

[Event "Budapest Chess Festival 2024"]
[Site "Budapest"]
[Date "2024.05.31"]
[Round "9.1"]
[White "Aryan Chopra"]
[Black "Ivanisevic, Ivan"]
[Result "1/2-1/2"]
[ECO "C57"]
[WhiteElo "2641"]
[BlackElo "2537"]
[Annotator "TA"]
[PlyCount "27"]
[EventDate "2024.05.20"]
[EventType "swiss"]
[EventCountry "HUN"]
[SourceTitle "playchess.com"]
[Source "ChessBase"]
[SourceQuality "1"]
[TimeControl "40/5400+30:1800+30"]

{[%evp 10,27,54,68,86,76,58,74,83,58,52,69,56,0,41,0,71,0,14,0]} 1. e4 {[%emt 0:02:04][%cal Be2e4,Be4d5,Bd5d6][%mdl 32]} e5 {[%emt 0:00:35]} 2. Nf3 {[%emt 0:00:05]} Nc6 {[%emt 0:00:05]} 3. Bc4 {[%emt 0:00:04]} Nf6 {[%emt 0:00:06]} 4. Ng5 {[%emt 0:00:18]} d5 {[%emt 0:00:06]} 5. exd5 {[%emt 0:00:04]} Nd4 {[%emt 0:00:19]} 6. c3 {[%emt 0:00:34]} h6 {[%emt 0:00:07]} 7. Nxf7 {[%emt 0:07:14]} Kxf7 {[%emt 0:00:07]} 8. cxd4 {[%emt 0:00:03]} exd4 {[%emt 0:00:07] White is better.} 9. d6+ {[%emt 0:08:15]} Kg6 $1 {[%emt 0:00:06]} 10. Bd3+ {[%emt 0:05:00]} Kf7 {[%emt 0:00:08]} 11. Bc4+ {[%emt 0:16:28]} Kg6 $1 {[%emt 0:00:07]} 12. Bd3+ {[%emt 0:02:05]} Kf7 {[%emt 0:00:06] [#]} 13. Bc4+ {[%emt 0:00:41]} (13. dxc7 $1 $16 Qe7+ 14. Be2) 13... Kg6 $1 $11 {[%emt 0:00:08]} 14. Bd3+ {[%emt 0:00:05] Weighted Error Value: White=0.30/Black=0.03 (flawless) .  Mistake:       	White=1     	---        OK:         	White=1     	---        Best:        	White=1     	Black=2      Strong:       	---       	Black=3} 1/2-1/2

[Event "Budapest Chess Festival 2024"]
[Site "Budapest"]
[Date "2024.05.31"]
[Round "9.3"]
[White "Kadric, Denis"]
[Black "Berkes, Ferenc"]
[Result "1/2-1/2"]
[ECO "C10"]
[WhiteElo "2558"]
[BlackElo "2618"]
[Annotator "TA"]
[PlyCount "45"]
[EventDate "2024.05.20"]
[EventType "swiss"]
[EventCountry "HUN"]
[SourceTitle "playchess.com"]
[Source "ChessBase"]
[SourceQuality "1"]
[TimeControl "40/5400+30:1800+30"]

{[%evp 12,45,45,33,48,55,61,57,61,54,49,47,57,48,41,38,42,41,38,38,48,39,56,51,50,50,54,58,104,54,47,38,101,88,105,63]} 1. e4 {[%emt 0:00:55]} e6 {[%emt 0:01:02]} 2. d4 {[%emt 0:00:06]} d5 {[%emt 0:00:07]} 3. Nc3 {[%emt 0:00:57]} dxe4 {[%emt 0:00:14]} 4. Nxe4 {[%emt 0:00:06]} Nd7 {[%emt 0:00:06]} 5. Nf3 {[%emt 0:00:08]} Ngf6 {[%emt 0:00:11]} 6. Nxf6+ {[%emt 0:00:06]} Nxf6 {[%emt 0:00:22]} 7. g3 {[%emt 0:00:18]} Qd5 {[%emt 0:33:08]} 8. Bg2 {[%emt 0:02:48]} Bd7 {[%emt 0:00:05]} 9. O-O {[%emt 0:05:42] Ne5 would now be deadly.} Bc6 {[%emt 0:00:07] White is slightly better.} 10. b3 {[%emt 0:23:25]} Be7 {[%emt 0:00:07]} 11. c4 {[%emt 0:00:04]} Qd8 {[%emt 0:00:25]} 12. Bb2 {[%emt 0:01:30]} O-O {[%emt 0:00:10]} 13. Re1 {[%emt 0:00:45]} Re8 {[%emt 0:08:18]} 14. Qc2 {[%emt 0:00:19]} Bxf3 {[%emt 0:00:52]} 15. Bxf3 {[%emt 0:00:03]} c6 {[%emt 0:00:07]} 16. h4 {[%emt 0:01:01]} Bf8 {[%emt 0:11:25]} 17. Kg2 {[%emt 0:00:21]} Rc8 {[%emt 0:10:06]} 18. Re3 {[%emt 0:07:21]} g6 {[%emt 0:00:52]} 19. h5 {[%emt 0:05:06]} Bg7 {[%emt 0:00:10]} (19... g5 $14) 20. hxg6 {[%emt 0:03:54]} (20. Rh1 $16) 20... hxg6 $14 {[%emt 0:00:05]} 21. Rh1 {[%emt 0:00:07]} Re7 {[%emt 0:00:19]} (21... Rc7 $14) 22. Qc1 $16 {[%emt 0:03:05] White is more active.} Rd7 {[%emt 0:00:32]} 23. Re2 {[%emt 0:01:25] Weighted Error Value: White=0.05 (flawless) /Black=0.10 (very precise) .  Mistake:       	White=1     	Black=2      Inaccurate:     	White=1     	---        OK:         	White=7     	Black=7      Best:        	---       	Black=1} 1/2-1/2